fUSD/lending_fUSD_20260621
["ID","MTS","AMOUNT","RATE_DAILY","PERIOD"]
[425924908,1782036671000,-500.0,0.00028767,2]
[425924911,1782036671000,-500.0,0.00028767,2]
[425924912,1782036671000,-500.0,0.00028767,2]
[425924906,1782036671000,-500.0,0.00028767,2]
[425924910,1782036671000,-500.0,0.00028767,2]
[425924904,1782036671000,-500.0,0.00028767,2]
[425924902,1782036671000,-500.0,0.00028767,2]
[425924914,1782036671000,-500.0,0.00028767,2]
[425924903,1782036671000,-550.18,0.00028767,2]
[425924913,1782036671000,-1089.19,0.00028767,2]
[425924905,1782036671000,-500.0,0.00028767,2]
[425924968,1782036672000,-673.93,0.00028767,2]
[425924978,1782036672000,-500.0,0.00028767,2]
[425924970,1782036672000,-500.0,0.00028767,2]
[425924971,1782036672000,-500.0,0.00028767,2]
[425924975,1782036672000,-500.0,0.00028767,2]
[425924972,1782036672000,-500.0,0.00028767,2]
[425924973,1782036672000,-500.0,0.00028767,2]
[425924974,1782036672000,-500.0,0.00028767,2]
[425924977,1782036672000,-500.0,0.00028767,2]
[425924969,1782036672000,-605.32,0.00028767,2]
[425924982,1782036672000,-500.0,0.00028767,2]
[425924987,1782036672000,-501.06783589,0.00028767,2]
[425924979,1782036672000,-925.07,0.00028767,2]
[425924980,1782036672000,-500.0,0.00028767,2]
[425924981,1782036672000,-500.0,0.00028767,2]
[425924983,1782036672000,-682.66,0.00028767,2]
[425924986,1782036672000,-500.0,0.00028767,2]
[425924988,1782036672000,-512.62,0.00028767,2]
[425924985,1782036672000,-3192.54,0.00028767,2]
[425924990,1782036672000,-500.0,0.00028767,2]
[425924967,1782036672000,-500.0,0.00028767,2]
[425924992,1782036672000,-500.0,0.00028767,2]
[425924984,1782036672000,-500.0,0.00028767,2]
[425924976,1782036672000,-500.0,0.00028767,2]
[425924953,1782036672000,-500.0,0.00028767,2]
[425924966,1782036672000,-500.0,0.00028767,2]
[425924995,1782036672000,-500.0,0.00028767,2]
[425924942,1782036672000,-688.76,0.00028767,2]
[425924945,1782036672000,-500.0,0.00028767,2]
[425924944,1782036672000,-500.0,0.00028767,2]
[425924946,1782036672000,-500.0,0.00028767,2]
[425924952,1782036672000,-500.0,0.00028767,2]
[425924943,1782036672000,-500.0,0.00028767,2]
[425924950,1782036672000,-671.07,0.00028767,2]
[425924949,1782036672000,-1101.32,0.00028767,2]
[425924947,1782036672000,-500.0,0.00028767,2]
[425924948,1782036672000,-500.0,0.00028767,2]
[425924951,1782036672000,-500.0,0.00028767,2]
[425924954,1782036672000,-500.0,0.00028767,2]
[425924955,1782036672000,-835.47,0.00028767,2]
[425924956,1782036672000,-500.0,0.00028767,2]
[425924958,1782036672000,-500.0,0.00028767,2]
[425924957,1782036672000,-555.47,0.00028767,2]
[425924959,1782036672000,-500.0,0.00028767,2]
[425924964,1782036672000,-500.0,0.00028767,2]
[425924961,1782036672000,-500.0,0.00028767,2]
[425924962,1782036672000,-180.47710061,0.00028767,2]
[425924963,1782036672000,-500.0,0.00028767,2]
[425924960,1782036672000,-500.0,0.00028767,2]
[425924965,1782036672000,-500.0,0.00028767,2]
[425924991,1782036672000,-500.0,0.00028767,2]
[425925000,1782036672000,-641.52,0.00028767,2]
[425924997,1782036672000,-500.0,0.00028767,2]
[425925022,1782036672000,-500.0,0.00028767,2]
[425925024,1782036672000,-500.0,0.00028767,2]
[425925026,1782036672000,-500.0,0.00028767,2]
[425925033,1782036672000,-500.0,0.00028767,2]
[425925025,1782036672000,-500.0,0.00028767,2]
[425925027,1782036672000,-500.0,0.00028767,2]
[425925030,1782036672000,-561.51,0.00028767,2]
[425925031,1782036672000,-500.0,0.00028767,2]
[425925028,1782036672000,-583.47,0.00028767,2]
[425925032,1782036672000,-500.0,0.00028767,2]
[425925029,1782036672000,-292.7,0.00028767,2]
[425925035,1782036672000,-500.0,0.00028767,2]
[425925036,1782036672000,-500.0,0.00028767,2]
[425925039,1782036672000,-500.0,0.00028767,2]
[425925038,1782036672000,-500.0,0.00028767,2]
[425925040,1782036672000,-500.0,0.00028767,2]
[425925037,1782036672000,-500.0,0.00028767,2]
[425925043,1782036672000,-500.0,0.00028767,2]
[425925044,1782036672000,-500.0,0.00028767,2]
[425925045,1782036672000,-768.15,0.00028767,2]
[425925042,1782036672000,-686.88,0.00028767,2]
[425924993,1782036672000,-500.0,0.00028767,2]
[425925041,1782036672000,-500.0,0.00028767,2]
[425925023,1782036672000,-500.0,0.00028767,2]
[425925018,1782036672000,-500.0,0.00028767,2]
[425925034,1782036672000,-500.0,0.00028767,2]
[425925019,1782036672000,-500.0,0.00028767,2]
[425924989,1782036672000,-500.0,0.00028767,2]
[425925016,1782036672000,-500.0,0.00028767,2]
[425924998,1782036672000,-687.18,0.00028767,2]
[425924996,1782036672000,-495.60117996,0.00028767,2]
[425924999,1782036672000,-694.81,0.00028767,2]
[425924994,1782036672000,-500.0,0.00028767,2]
[425925001,1782036672000,-500.0,0.00028767,2]
[425925005,1782036672000,-693.69,0.00028767,2]
[425925007,1782036672000,-500.0,0.00028767,2]
[425925003,1782036672000,-421.84964275,0.00028767,2]
[425925002,1782036672000,-500.0,0.00028767,2]
[425925004,1782036672000,-500.0,0.00028767,2]
[425925015,1782036672000,-500.0,0.00028767,2]
[425925021,1782036672000,-845.41,0.00028767,2]
[425925009,1782036672000,-516.71,0.00028767,2]
[425925020,1782036672000,-500.0,0.00028767,2]
[425925014,1782036672000,-500.0,0.00028767,2]
[425925012,1782036672000,-1198.9,0.00028767,2]
[425925017,1782036672000,-500.0,0.00028767,2]
[425925011,1782036672000,-500.0,0.00028767,2]
[425925008,1782036672000,-599.45,0.00028767,2]
[425925010,1782036672000,-553.65,0.00028767,2]
[425925006,1782036672000,-500.0,0.00028767,2]
[425925013,1782036672000,-500.0,0.00028767,2]
[425925089,1782036673000,-500.0,0.00028767,2]
[425925085,1782036673000,-2356.71,0.00028767,2]
[425925087,1782036673000,-1253.56,0.00028767,2]
[425925096,1782036673000,-253.57877694,0.00028767,2]
[425925078,1782036673000,-638.76,0.00028767,2]
[425925081,1782036673000,-500.0,0.00028767,2]
[425925079,1782036673000,-653.61,0.00028767,2]
[425925077,1782036673000,-779.55,0.00028767,2]
[425925082,1782036673000,-500.0,0.00028767,2]
[425925080,1782036673000,-500.0,0.00028767,2]
[425925088,1782036673000,-500.0,0.00028767,2]
[425925086,1782036673000,-500.0,0.00028767,2]
[425925097,1782036673000,-226.78468914,0.00028767,2]
[425925104,1782036673000,-598.45,0.00028767,2]
[425925092,1782036673000,-248.60459234,0.00028767,2]
[425925090,1782036673000,-500.0,0.00028767,2]
[425925091,1782036673000,-910.29,0.00028767,2]
[425925094,1782036673000,-500.0,0.00028767,2]
[425925093,1782036673000,-500.0,0.00028767,2]
[425925099,1782036673000,-500.0,0.00028767,2]
[425925109,1782036673000,-947.58,0.00028767,2]
[425925102,1782036673000,-500.0,0.00028767,2]
[425925105,1782036673000,-974.4,0.00028767,2]
[425925106,1782036673000,-500.0,0.00028767,2]
[425925098,1782036673000,-763.08,0.00028767,2]
[425925100,1782036673000,-500.0,0.00028767,2]
[425925076,1782036673000,-684.54,0.00028767,2]
[425925095,1782036673000,-500.0,0.00028767,2]
[425925075,1782036673000,-500.0,0.00028767,2]
[425925053,1782036673000,-500.0,0.00028767,2]
[425925072,1782036673000,-500.0,0.00028767,2]
[425925108,1782036673000,-500.0,0.00028767,2]
[425925046,1782036673000,-500.0,0.00028767,2]
[425925047,1782036673000,-500.0,0.00028767,2]
[425925057,1782036673000,-500.0,0.00028767,2]
[425925058,1782036673000,-245.78,0.00028767,2]
[425925056,1782036673000,-500.0,0.00028767,2]
[425925051,1782036673000,-500.0,0.00028767,2]
[425925049,1782036673000,-500.0,0.00028767,2]
[425925050,1782036673000,-500.0,0.00028767,2]
[425925055,1782036673000,-500.0,0.00028767,2]
[425925052,1782036673000,-635.0,0.00028767,2]
[425925048,1782036673000,-519.87,0.00028767,2]
[425925054,1782036673000,-500.0,0.00028767,2]
[425925059,1782036673000,-500.0,0.00028767,2]
[425925061,1782036673000,-500.0,0.00028767,2]
[425925062,1782036673000,-500.0,0.00028767,2]
[425925060,1782036673000,-592.75,0.00028767,2]
[425925063,1782036673000,-1360.88,0.00028767,2]
[425925065,1782036673000,-500.0,0.00028767,2]
[425925070,1782036673000,-500.0,0.00028767,2]
[425925064,1782036673000,-500.0,0.00028767,2]
[425925069,1782036673000,-500.0,0.00028767,2]
[425925068,1782036673000,-770.0,0.00028767,2]
[425925071,1782036673000,-500.0,0.00028767,2]
[425925066,1782036673000,-500.0,0.00028767,2]
[425925067,1782036673000,-1235.09,0.00028767,2]
[425925073,1782036673000,-500.0,0.00028767,2]
[425925074,1782036673000,-500.0,0.00028767,2]
[425925084,1782036673000,-500.0,0.00028767,2]
[425925083,1782036673000,-503.72,0.00028767,2]
[425925101,1782036673000,-500.0,0.00028767,2]
[425925116,1782036673000,-500.0,0.00028767,2]
[425925107,1782036673000,-500.0,0.00028767,2]
[425925137,1782036673000,-849.95,0.00028767,2]
[425925145,1782036673000,-1933.49,0.00028767,2]
[425925141,1782036673000,-3216.01,0.00028767,2]
[425925157,1782036673000,-500.0,0.00028767,2]
[425925146,1782036673000,-5268.44,0.00028767,2]
[425925147,1782036673000,-500.0,0.00028767,2]
[425925158,1782036673000,-4567.55,0.00028767,2]
[425925148,1782036673000,-524.63,0.00028767,2]
[425925149,1782036673000,-1119.73,0.00028767,2]
[425925159,1782036673000,-500.0,0.00028767,2]
[425925150,1782036673000,-4806.58,0.00028767,2]
[425925151,1782036673000,-935.79,0.00028767,2]
[425925153,1782036673000,-951.62,0.00028767,2]
[425925144,1782036673000,-834.65,0.00028767,2]
[425925156,1782036673000,-648.35,0.00028767,2]
[425925154,1782036673000,-500.0,0.00028767,2]
[425925152,1782036673000,-500.0,0.00028767,2]
[425925160,1782036673000,-500.0,0.00028767,2]
[425925162,1782036673000,-500.0,0.00028767,2]
[425925163,1782036673000,-500.0,0.00028767,2]
[425925167,1782036673000,-500.0,0.00028767,2]
[425925161,1782036673000,-500.0,0.00028767,2]
[425925168,1782036673000,-500.0,0.00028767,2]
[425925164,1782036673000,-500.0,0.00028767,2]
[425925166,1782036673000,-643.8,0.00028767,2]
[425925169,1782036673000,-500.0,0.00028767,2]
[425925170,1782036673000,-500.0,0.00028767,2]
[425925103,1782036673000,-500.0,0.00028767,2]
[425925155,1782036673000,-4809.24,0.00028767,2]
[425925142,1782036673000,-969.73,0.00028767,2]
[425925165,1782036673000,-500.0,0.00028767,2]
[425925139,1782036673000,-500.0,0.00028767,2]
[425925110,1782036673000,-1321.35,0.00028767,2]
[425925135,1782036673000,-500.0,0.00028767,2]
[425925113,1782036673000,-509.77,0.00028767,2]
[425925118,1782036673000,-500.0,0.00028767,2]
[425925119,1782036673000,-500.0,0.00028767,2]
[425925121,1782036673000,-500.0,0.00028767,2]
[425925115,1782036673000,-500.0,0.00028767,2]
[425925114,1782036673000,-1097.22,0.00028767,2]
[425925117,1782036673000,-500.0,0.00028767,2]
[425925111,1782036673000,-500.0,0.00028767,2]
[425925120,1782036673000,-500.0,0.00028767,2]
[425925123,1782036673000,-500.0,0.00028767,2]
[425925133,1782036673000,-675.07,0.00028767,2]
[425925122,1782036673000,-246.14893503,0.00028767,2]
[425925112,1782036673000,-500.0,0.00028767,2]
[425925125,1782036673000,-500.0,0.00028767,2]
[425925140,1782036673000,-500.0,0.00028767,2]
[425925132,1782036673000,-956.37,0.00028767,2]
[425925138,1782036673000,-559.83,0.00028767,2]
[425925134,1782036673000,-500.0,0.00028767,2]
[425925136,1782036673000,-3565.25,0.00028767,2]
[425925129,1782036673000,-500.0,0.00028767,2]
[425925143,1782036673000,-500.0,0.00028767,2]
[425925127,1782036673000,-500.0,0.00028767,2]
[425925128,1782036673000,-500.0,0.00028767,2]
[425925124,1782036673000,-500.0,0.00028767,2]
[425925131,1782036673000,-500.0,0.00028767,2]
[425925126,1782036673000,-500.0,0.00028767,2]
[425925130,1782036673000,-1273.89,0.00028767,2]
[425925208,1782036674000,-500.0,0.00028767,2]
[425925210,1782036674000,-500.0,0.00028767,2]
[425925206,1782036674000,-500.0,0.00028767,2]
[425925207,1782036674000,-500.0,0.00028767,2]
[425925203,1782036674000,-500.0,0.00028767,2]
[425925204,1782036674000,-500.0,0.00028767,2]
[425925205,1782036674000,-6132.74,0.00028767,2]
[425925202,1782036674000,-500.0,0.00028767,2]
[425925201,1782036674000,-500.0,0.00028767,2]
[425925209,1782036674000,-500.0,0.00028767,2]
[425925211,1782036674000,-500.0,0.00028767,2]
[425925215,1782036674000,-324.02677069,0.00028767,2]
[425925213,1782036674000,-500.0,0.00028767,2]
[425925217,1782036674000,-500.0,0.00028767,2]
[425925214,1782036674000,-500.78,0.00028767,2]
[425925212,1782036674000,-500.0,0.00028767,2]
[425925218,1782036674000,-500.0,0.00028767,2]
[425925221,1782036674000,-500.0,0.00028767,2]
[425925227,1782036674000,-547.39,0.00028767,2]
[425925228,1782036674000,-602.27,0.00028767,2]
[425925224,1782036674000,-500.0,0.00028767,2]
[425925220,1782036674000,-612.81,0.00028767,2]
[425925200,1782036674000,-500.0,0.00028767,2]
[425925223,1782036674000,-500.0,0.00028767,2]
[425925216,1782036674000,-391.66588181,0.00028767,2]
[425925199,1782036674000,-500.0,0.00028767,2]
[425925184,1782036674000,-500.0,0.00028767,2]
[425925196,1782036674000,-500.0,0.00028767,2]
[425925222,1782036674000,-500.0,0.00028767,2]
[425925171,1782036674000,-500.0,0.00028767,2]
[425925173,1782036674000,-500.0,0.00028767,2]
[425925183,1782036674000,-2467.13,0.00028767,2]
[425925172,1782036674000,-500.0,0.00028767,2]
[425925174,1782036674000,-500.0,0.00028767,2]
[425925176,1782036674000,-218.66906277,0.00028767,2]
[425925175,1782036674000,-500.0,0.00028767,2]
[425925178,1782036674000,-500.0,0.00028767,2]
[425925177,1782036674000,-500.0,0.00028767,2]
[425925181,1782036674000,-500.0,0.00028767,2]
[425925180,1782036674000,-500.0,0.00028767,2]
[425925198,1782036674000,-500.0,0.00028767,2]
[425925182,1782036674000,-918.31,0.00028767,2]
[425925188,1782036674000,-1161.648627,0.00028767,7]
[425925185,1782036674000,-500.0,0.00028767,2]
[425925186,1782036674000,-500.0,0.00028767,2]
[425925187,1782036674000,-500.0,0.00028767,2]
[425925190,1782036674000,-1161.648627,0.00028767,7]
[425925189,1782036674000,-500.0,0.00028767,2]
[425925193,1782036674000,-1161.648627,0.00028767,7]
[425925191,1782036674000,-500.0,0.00028767,2]
[425925194,1782036674000,-500.0,0.00028767,2]
[425925195,1782036674000,-500.0,0.00028767,2]
[425925192,1782036674000,-1161.648627,0.00028767,7]
[425925197,1782036674000,-500.0,0.00028767,2]
[425925179,1782036674000,-835.73,0.00028767,2]
[425925225,1782036674000,-500.0,0.00028767,2]
[425925242,1782036674000,-4513.58,0.00028767,2]
[425925226,1782036674000,-500.0,0.00028767,2]
[425925261,1782036674000,-500.0,0.00028767,2]
[425925259,1782036674000,-529.95,0.00028767,2]
[425925263,1782036674000,-737.59,0.00028767,2]
[425925260,1782036674000,-500.0,0.00028767,2]
[425925262,1782036674000,-1121.32,0.00028767,2]
[425925264,1782036674000,-500.0,0.00028767,2]
[425925266,1782036674000,-500.0,0.00028767,2]
[425925268,1782036674000,-508.58,0.00028767,2]
[425925267,1782036674000,-3462.02,0.00028767,2]
[425925269,1782036674000,-500.0,0.00028767,2]
[425925265,1782036674000,-560.95,0.00028767,2]
[425925219,1782036674000,-500.0,0.00028767,2]
[425925272,1782036674000,-503.69,0.00028767,2]
[425925271,1782036674000,-500.0,0.00028767,2]
[425925273,1782036674000,-500.0,0.00028767,2]
[425925274,1782036674000,-4407.46,0.00028767,2]
[425925276,1782036674000,-7434.82,0.00028767,2]
[425925275,1782036674000,-4893.3,0.00028767,2]
[425925279,1782036674000,-4920.34,0.00028767,2]
[425925277,1782036674000,-500.0,0.00028767,2]
[425925280,1782036674000,-614.43,0.00028767,2]
[425925283,1782036674000,-6191.78,0.00028767,2]
[425925282,1782036674000,-500.0,0.00028767,2]
[425925281,1782036674000,-500.0,0.00028767,2]
[425925278,1782036674000,-752.17,0.00028767,2]
[425925258,1782036674000,-613.09231104,0.00028767,2]
[425925257,1782036674000,-11591.31,0.00028767,2]
[425925270,1782036674000,-500.0,0.00028767,2]
[425925253,1782036674000,-500.0,0.00028767,2]
[425925255,1782036674000,-4142.16,0.00028767,2]
[425925230,1782036674000,-547.19,0.00028767,2]
[425925240,1782036674000,-500.0,0.00028767,2]
[425925231,1782036674000,-500.0,0.00028767,2]
[425925229,1782036674000,-637.81,0.00028767,2]
[425925232,1782036674000,-500.0,0.00028767,2]
[425925233,1782036674000,-500.0,0.00028767,2]
[425925236,1782036674000,-170.59,0.00028767,2]
[425925234,1782036674000,-500.0,0.00028767,2]
[425925235,1782036674000,-500.0,0.00028767,2]
[425925238,1782036674000,-500.0,0.00028767,2]
[425925239,1782036674000,-8596.43,0.00028767,2]
[425925237,1782036674000,-782.44,0.00028767,2]
[425925244,1782036674000,-589.86,0.00028767,2]
[425925256,1782036674000,-500.0,0.00028767,2]
[425925241,1782036674000,-312.04768087,0.00028767,2]
[425925254,1782036674000,-5549.57,0.00028767,2]
[425925250,1782036674000,-4234.92,0.00028767,2]
[425925251,1782036674000,-500.0,0.00028767,2]
[425925249,1782036674000,-544.03,0.00028767,2]
[425925246,1782036674000,-500.0,0.00028767,2]
[425925247,1782036674000,-4904.56,0.00028767,2]
[425925252,1782036674000,-500.0,0.00028767,2]
[425925248,1782036674000,-518.81,0.00028767,2]
[425925245,1782036674000,-8344.59,0.00028767,2]
[425925243,1782036674000,-741.55,0.00028767,2]
[425925320,1782036675000,-6967.46,0.00028767,2]
[425925327,1782036675000,-500.0,0.00028767,2]
[425925326,1782036675000,-500.0,0.00028767,2]
[425925324,1782036675000,-58770.661065,0.00028767,2]
[425925316,1782036675000,-513.04,0.00028767,2]
[425925312,1782036675000,-904.85,0.00028767,2]
[425925318,1782036675000,-2754.08,0.00028767,2]
[425925314,1782036675000,-500.0,0.00028767,2]
[425925319,1782036675000,-500.0,0.00028767,2]
[425925313,1782036675000,-574.59,0.00028767,2]
[425925325,1782036675000,-913.0,0.00028767,2]
[425925317,1782036675000,-552.83384068,0.00028767,2]
[425925334,1782036675000,-10370.49,0.00028767,2]
[425925344,1782036675000,-500.0,0.00028767,2]
[425925331,1782036675000,-7308.09,0.00028767,2]
[425925328,1782036675000,-500.0,0.00028767,2]
[425925330,1782036675000,-2177.43,0.00028767,2]
[425925335,1782036675000,-500.0,0.00028767,2]
[425925333,1782036675000,-6610.19,0.00028767,2]
[425925329,1782036675000,-2750.97,0.00028767,2]
[425925336,1782036675000,-273.8603171,0.00028767,2]
[425925345,1782036675000,-500.0,0.00028767,2]
[425925338,1782036675000,-500.0,0.00028767,2]
[425925346,1782036675000,-489.96677777,0.00028767,2]
[425925337,1782036675000,-3409.76,0.00028767,2]
[425925322,1782036675000,-673.1,0.00028767,2]
[425925332,1782036675000,-500.0,0.00028767,2]
[425925321,1782036675000,-500.0,0.00028767,2]
[425925298,1782036675000,-9537.38,0.00028767,2]
[425925306,1782036675000,-500.0,0.00028767,2]
[425925339,1782036675000,-578.58,0.00028767,2]
[425925284,1782036675000,-504.3,0.00028767,2]
[425925285,1782036675000,-8802.4,0.00028767,2]
[425925286,1782036675000,-3641.08,0.00028767,2]
[425925292,1782036675000,-500.0,0.00028767,2]
[425925288,1782036675000,-1000.0,0.00028767,2]
[425925289,1782036675000,-500.0,0.00028767,2]
[425925295,1782036675000,-15685.64,0.00028767,2]
[425925291,1782036675000,-8686.83,0.00028767,2]
[425925294,1782036675000,-500.0,0.00028767,2]
[425925290,1782036675000,-500.0,0.00028767,2]
[425925297,1782036675000,-500.0,0.00028767,2]
[425925293,1782036675000,-500.0,0.00028767,2]
[425925287,1782036675000,-500.0,0.00028767,2]
[425925296,1782036675000,-3642.96,0.00028767,2]
[425925308,1782036675000,-3648.64,0.00028767,2]
[425925309,1782036675000,-2112.512751,0.00028767,7]
[425925299,1782036675000,-9148.39,0.00028767,2]
[425925311,1782036675000,-3690.26,0.00028767,2]
[425925310,1782036675000,-7006.76,0.00028767,2]
[425925303,1782036675000,-4116.89,0.00028767,2]
[425925301,1782036675000,-2112.512751,0.00028767,7]
[425925305,1782036675000,-793.21,0.00028767,2]
[425925300,1782036675000,-762.22,0.00028767,2]
[425925304,1782036675000,-2112.512751,0.00028767,7]
[425925302,1782036675000,-1130.75,0.00028767,2]
[425925307,1782036675000,-2112.512751,0.00028767,7]
[425925323,1782036675000,-4469.05,0.00028767,2]
[425925347,1782036675000,-3668.5664601,0.00028771,2]
[425925315,1782036675000,-694.24,0.00028767,2]
[425925342,1782036675000,-500.0,0.00028767,2]
[425925377,1782036675000,-151.0,0.00028984,7]
[425925378,1782036675000,-151.0,0.00028984,7]
[425925375,1782036675000,-1161.648623,0.00028984,7]
[425925381,1782036675000,-1874105.27869182,0.00029,7]
[425925383,1782036675000,-2112.512751,0.00029,7]
[425925379,1782036675000,-328.69924039,0.0002899,2]
[425925380,1782036675000,-162.791075,0.00028992,10]
[425925382,1782036675000,-2112.512751,0.00029,7]
[425925385,1782036675000,-2112.512751,0.00029,7]
[425925393,1782036675000,-735.98,0.0002904,2]
[425925394,1782036675000,-735.98,0.0002904,2]
[425925384,1782036675000,-2112.512751,0.00029,7]
[425925400,1782036675000,-500.0,0.00029041,2]
[425925395,1782036675000,-500.0,0.00029041,2]
[425925387,1782036675000,-1428.58,0.0002904,2]
[425925386,1782036675000,-3085.79315724,0.00029,2]
[425925388,1782036675000,-1428.58,0.0002904,2]
[425925389,1782036675000,-1428.58,0.0002904,2]
[425925390,1782036675000,-1428.58,0.0002904,2]
[425925391,1782036675000,-1428.58,0.0002904,2]
[425925392,1782036675000,-1428.70102885,0.0002904,2]
[425925396,1782036675000,-500.0,0.00029041,2]
[425925398,1782036675000,-500.0,0.00029041,2]
[425925397,1782036675000,-500.0,0.00029041,2]
[425925401,1782036675000,-500.0,0.00029041,2]
[425925399,1782036675000,-500.0,0.00029041,2]
[425925340,1782036675000,-2245.52,0.00028767,2]
[425925374,1782036675000,-1161.648627,0.00028984,7]
[425925373,1782036675000,-1161.648627,0.00028984,7]
[425925403,1782036675000,-534.74323602,0.00029041,2]
[425925376,1782036675000,-151.0,0.00028984,7]
[425925402,1782036675000,-500.0,0.00029041,2]
[425925341,1782036675000,-5168.02,0.00028767,2]
[425925348,1782036675000,-510.0,0.00028789,3]
[425925350,1782036675000,-6081.0,0.00028812,2]
[425925355,1782036675000,-165.37889936,0.00028874,30]
[425925356,1782036675000,-189.0,0.00028874,30]
[425925351,1782036675000,-162.0,0.00028872,30]
[425925353,1782036675000,-161.0,0.00028872,30]
[425925352,1782036675000,-153.0,0.00028872,30]
[425925354,1782036675000,-218.0,0.00028874,30]
[425925357,1782036675000,-160.0,0.00028874,30]
[425925349,1782036675000,-3647.0,0.00028812,2]
[425925359,1782036675000,-156.84738483,0.00028898,2]
[425925343,1782036675000,-1012.47,0.00028767,2]
[425925358,1782036675000,-59491.67514473,0.0002888,60]
[425925369,1782036675000,-152.25,0.00028963,30]
[425925368,1782036675000,-150.72,0.00028963,30]
[425925367,1782036675000,-587.36,0.00028934,30]
[425925364,1782036675000,-49535.85663792,0.0002893,2]
[425925360,1782036675000,-449.5,0.000289,7]
[425925365,1782036675000,-265.36,0.0002893,30]
[425925366,1782036675000,-472.74,0.00028932,30]
[425925371,1782036675000,-362998.4003101,0.00028984,2]
[425925361,1782036675000,-176.08,0.00028922,30]
[425925372,1782036675000,-1161.648627,0.00028984,7]
[425925370,1782036675000,-1386.0,0.00028979,3]
[425925362,1782036675000,-187.32,0.00028925,30]
[425925363,1782036675000,-307.54,0.00028928,30]
[425925444,1782036676000,-500.0,0.00029041,2]
[425925445,1782036676000,-500.0,0.00029041,2]
[425925442,1782036676000,-500.0,0.00029041,2]
[425925439,1782036676000,-500.0,0.00029041,2]
[425925433,1782036676000,-500.0,0.00029041,2]
[425925436,1782036676000,-837.02,0.00029041,2]
[425925432,1782036676000,-586.57621916,0.00029041,2]
[425925434,1782036676000,-500.0,0.00029041,2]
[425925437,1782036676000,-500.0,0.00029041,2]
[425925438,1782036676000,-500.0,0.00029041,2]
[425925440,1782036676000,-500.0,0.00029041,2]
[425925446,1782036676000,-500.0,0.00029041,2]
[425925454,1782036676000,-552.91,0.00029041,2]
[425925451,1782036676000,-500.0,0.00029041,2]
[425925455,1782036676000,-500.0,0.00029041,2]
[425925452,1782036676000,-500.0,0.00029041,2]
[425925453,1782036676000,-500.0,0.00029041,2]
[425925450,1782036676000,-500.0,0.00029041,2]
[425925448,1782036676000,-500.0,0.00029041,2]
[425925449,1782036676000,-500.0,0.00029041,2]
[425925447,1782036676000,-500.0,0.00029041,2]
[425925456,1782036676000,-688.76,0.00029041,2]
[425925466,1782036676000,-500.0,0.00029041,2]
[425925467,1782036676000,-500.0,0.00029041,2]
[425925435,1782036676000,-500.0,0.00029041,2]
[425925457,1782036676000,-582.10228966,0.00029041,2]
[425925443,1782036676000,-877.63,0.00029041,2]